bitfinex/quotes_SOLUSD_20241113
["timestamp","ask_amount","ask_price","bid_price","bid_amount"]
[1731518275357,21.70782712,219.83,219.71,7.681]
[1731518275659,21.70782712,219.89,219.71,7.681]
[1731518275660,21.70782712,219.81,219.71,7.681]
[1731518275862,21.70782712,219.84,219.71,7.681]
[1731518276066,21.70782712,219.87,219.71,7.681]
[1731518276265,21.70782712,219.86,219.71,7.681]
[1731518276660,4.5485,219.86,219.71,7.681]
[1731518276953,4.5485,219.86,219.63,15.2785]
[1731518276954,21.70782712,219.8,219.63,15.2785]
[1731518277344,21.70782712,219.81,219.63,15.2785]
[1731518277744,21.70782712,219.81,219.64,0.12549]
[1731518278346,21.70782712,219.79,219.63,15.2785]
[1731518278766,21.70782712,219.8,219.63,15.2785]
[1731518278961,21.70782712,219.79,219.63,15.2785]
[1731518279147,21.70782712,219.78,219.63,15.2785]
[1731518279570,21.70782712,219.76,219.63,15.2785]
[1731518279750,21.70782712,219.76,219.64,0.12549]
[1731518279952,21.70782712,219.74,219.61,7.681]
[1731518280251,4.5504,219.76,219.61,7.681]
[1731518280762,21.70782712,219.79,219.62,0.12549]
[1731518280965,296.52288299,220.07,219.62,0.12549]
[1731518280966,4.5481,219.87,219.62,0.22549]
[1731518281182,7.03699756,219.88,219.66,0.22549]
[1731518281466,7.03532528,219.89,219.68,20.12549]
[1731518281769,21.70782712,219.93,219.68,20.12549]
[1731518281770,26.25482712,219.93,219.7,0.12549]
[1731518281974,33.32878616,219.93,219.72,0.12549]
[1731518282278,21.70782712,219.91,219.72,0.12549]
[1731518282453,21.70782712,219.91,219.69,23.776884]
[1731518282653,33.32878616,219.93,219.7,0.12549]
[1731518282874,7.07395904,219.93,219.73,23.776884]
[1731518283049,21.70782712,219.92,219.73,23.776884]
[1731518283376,21.70782712,219.9,219.69,23.776884]
[1731518283552,21.70782712,219.91,219.7,0.12549]
[1731518283756,28.74306945,219.92,219.7,0.12549]
[1731518283953,4.5469,219.93,219.72,0.12549]
[1731518284450,7.06201572,219.94,219.74,20.12549]
[1731518284657,7.03441064,219.95,219.76,0.12549]
[1731518284953,21.70782712,219.87,219.73,7.681]
[1731518285153,21.70782712,219.84,219.73,7.681]
[1731518285371,21.70782712,219.79,219.66,7.681]
[1731518285667,21.70782712,219.81,219.66,7.681]
[1731518285873,21.70782712,219.79,219.66,7.681]
[1731518286052,0.1,219.86,219.66,7.681]
[1731518286053,21.70782712,219.78,219.66,7.681]
[1731518286452,34.64962712,219.85,219.66,7.681]
[1731518286654,7.0523581,219.86,219.67,20.0]
[1731518286871,4.548,219.88,219.67,20.0]
[1731518286872,4.548,219.88,219.68,0.12549]
[1731518287274,4.548,219.88,219.67,20.0]
[1731518287275,4.548,219.88,219.66,7.681]
[1731518287472,21.70782712,219.87,219.66,7.681]
[1731518287654,26.25582712,219.88,219.67,23.902374]
[1731518287977,33.33697895,219.88,219.67,23.902374]
[1731518288178,11.62915183,219.88,219.67,23.902374]
[1731518288958,33.33697895,219.88,219.67,23.902374]
[1731518289165,11.62915183,219.88,219.67,23.902374]
[1731518289659,22.95337227,219.98,219.66,7.681]
[1731518289660,7.03441064,219.95,219.73,20.12549]
[1731518289976,7.03441064,219.95,219.77,23.902374]
[1731518290180,7.03441064,219.95,219.77,0.12549]
[1731518290374,11.58091064,219.95,219.77,0.12549]
[1731518290876,21.70782712,219.91,219.75,7.681]
[1731518291071,21.70782712,219.9,219.76,0.12549]
[1731518291276,21.70782712,219.89,219.76,0.12549]
[1731518291768,4.5478,219.89,219.76,0.12549]
[1731518292077,23.776884,219.88,219.76,0.12549]
[1731518292381,23.776884,219.9,219.76,0.12549]
[1731518293276,45.48471112,219.9,219.75,7.681]
[1731518293474,21.70782712,219.89,219.75,7.681]
[1731518293669,21.70782712,219.86,219.75,7.681]
[1731518293877,23.776884,219.85,219.75,7.681]
[1731518294373,45.48471112,219.85,219.75,7.681]
[1731518294768,4.5487,219.84,219.75,7.681]
[1731518296279,26.25682712,219.83,219.75,7.681]
[1731518296472,21.70782712,219.82,219.72,15.0091]
[1731518296779,26.25682712,219.83,219.72,15.0091]
[1731518296986,11.3699,219.88,219.73,0.12549]
[1731518296987,23.776884,219.87,219.73,0.12549]
[1731518297281,6.9941225,219.91,219.73,23.902374]
[1731518297586,4.5466,219.94,219.75,23.902374]
[1731518297768,4.5466,219.94,219.77,0.12549]
[1731518298074,4.5464,219.96,219.77,0.12549]
[1731518298263,7.11773637,219.96,219.79,43.902374]
[1731518298464,4.5454,220.0,219.79,43.902374]
[1731518298775,4.5454,220.0,219.79,20.12549]
[1731518298976,21.70782712,219.97,219.79,0.12549]
[1731518299178,21.70782712,219.95,219.79,0.12549]
[1731518299563,21.70782712,219.92,219.79,0.12549]
[1731518299764,21.70782712,219.94,219.79,0.12549]
[1731518299981,23.776884,219.93,219.79,0.12549]
[1731518300278,45.48471112,219.91,219.78,22.6901]
[1731518300476,23.776884,219.89,219.78,22.6901]
[1731518301164,21.70782712,219.9,219.78,22.6901]
[1731518301360,5.84023554,219.96,219.78,22.6901]
[1731518301561,21.70782712,219.94,219.78,22.6901]
[1731518301776,21.70782712,219.94,219.79,0.12549]
[1731518301966,21.70782712,219.93,219.79,0.12549]
[1731518302170,4.5464,219.95,219.79,0.12549]
[1731518302571,4.5458,219.98,219.79,0.12549]
[1731518303164,11.46218822,220.0,219.79,0.12549]
[1731518303663,33.17001534,220.0,219.79,0.12549]
[1731518304178,23.776884,219.97,219.79,0.12549]
[1731518304767,4.5458,219.98,219.79,23.902374]
[1731518305158,4.5458,219.98,219.79,0.12549]
[1731518305485,6.91658822,220.0,219.8,20.0]
[1731518305672,4.5454,220.0,219.8,20.0]
[1731518305869,4.5454,220.0,219.81,23.776884]
[1731518306073,4.5454,220.0,219.82,7.681]
[1731518306382,4.5452,220.02,219.82,7.681]
[1731518306877,4.5435,220.09,219.85,43.902374]
[1731518307080,4.5435,220.09,219.85,23.902374]
[1731518307464,21.70782712,220.07,219.85,23.902374]
[1731518307663,4.5438,220.08,219.85,23.902374]
[1731518308178,21.70782712,220.07,219.85,23.902374]
[1731518308385,23.776884,220.06,219.85,23.902374]
[1731518308589,4.5444,220.05,219.85,23.902374]
[1731518308767,26.25132712,220.09,219.85,23.902374]
[1731518309089,21.70782712,220.07,219.85,23.902374]
[1731518309469,21.70782712,220.05,219.85,23.902374]
[1731518309778,21.70782712,220.07,219.85,23.902374]
[1731518309964,23.776884,220.06,219.85,23.902374]
[1731518310386,23.776884,220.06,219.87,0.12549]
[1731518310681,23.776884,220.04,219.87,0.12549]
[1731518311183,45.48471112,220.02,219.87,0.12549]
[1731518311363,23.776884,220.02,219.87,0.12549]
[1731518311562,21.70782712,220.02,219.87,0.12549]
[1731518311966,45.48471112,219.98,219.86,7.681]
[1731518312172,27.54806266,220.02,219.86,7.681]
[1731518312371,21.70782712,219.99,219.86,7.681]
[1731518312683,23.776884,219.97,219.86,7.681]
[1731518312865,4.5458,219.98,219.86,7.681]
[1731518313185,45.48471112,219.97,219.86,7.681]
[1731518313363,21.70782712,219.92,219.8,7.681]
[1731518313564,45.48471112,219.91,219.8,7.681]
[1731518313762,21.70782712,219.9,219.8,7.681]
[1731518313965,21.70782712,219.89,219.8,7.681]
[1731518314393,23.776884,219.91,219.8,7.681]
[1731518314587,45.48471112,219.91,219.8,7.681]
[1731518314783,26.25532712,219.9,219.8,7.681]
[1731518314992,26.25532712,219.9,219.75,15.0091]
[1731518314993,23.776884,219.88,219.75,15.0091]
[1731518315172,45.48471112,219.88,219.75,15.0091]
[1731518315867,21.70782712,219.88,219.75,15.0091]
[1731518316176,23.776884,219.87,219.75,15.0091]
[1731518316578,4.5479,219.88,219.75,15.0091]
[1731518317083,26.25572712,219.88,219.75,15.0091]
[1731518317282,26.25572712,219.88,219.74,7.681]
[1731518317283,21.70782712,219.85,219.74,7.681]
[1731518317689,23.776884,219.87,219.74,7.681]
[1731518317690,21.70782712,219.86,219.74,7.681]
[1731518317991,45.48471112,219.87,219.74,7.681]
[1731518318291,23.776884,219.87,219.74,7.681]
[1731518318487,4.5479,219.88,219.75,0.12549]
[1731518318988,23.776884,219.89,219.75,0.12549]
[1731518319188,21.70782712,219.85,219.65,7.681]
[1731518319394,45.48471112,219.84,219.65,7.681]
[1731518319572,45.48471112,219.84,219.66,0.12549]
[1731518319775,21.70782712,219.83,219.65,7.681]
[1731518320286,26.25692712,219.82,219.65,7.681]
[1731518320496,23.776884,219.76,219.65,7.681]
[1731518320992,23.776884,219.77,219.65,7.681]
[1731518321186,21.70782712,219.77,219.65,7.681]
[1731518321385,21.70782712,219.79,219.65,7.681]
[1731518321688,4.55,219.78,219.65,7.681]
[1731518321887,21.70782712,219.77,219.65,7.681]
[1731518322187,26.25782712,219.78,219.65,7.681]
[1731518322600,4.55,219.78,219.65,7.681]
[1731518322779,4.55,219.78,219.66,0.12549]
[1731518323298,21.70782712,219.8,219.66,0.12549]
[1731518323802,21.70782712,219.79,219.66,0.12549]
[1731518324396,21.70782712,219.81,219.66,0.12549]
[1731518324687,4.5489,219.83,219.66,0.12549]
[1731518325895,21.70782712,219.83,219.66,0.12549]
[1731518326772,6.91302269,219.83,219.66,0.12549]
[1731518326976,4.5491,219.82,219.66,0.12549]
[1731518327697,15.0091,219.81,219.66,0.12549]
[1731518328074,19.5585,219.81,219.66,0.12549]
[1731518328380,41.26632712,219.81,219.66,0.12549]
[1731518329189,26.25752712,219.79,219.66,0.12549]
[1731518329379,4.5497,219.79,219.66,0.12549]
[1731518329785,19.5586,219.81,219.66,23.902374]
[1731518330093,19.5586,219.81,219.66,0.12549]
[1731518330303,41.26642712,219.81,219.66,0.12549]
[1731518330593,19.5586,219.81,219.66,0.12549]
[1731518330796,21.70782712,219.8,219.66,0.12549]
[1731518330999,21.70782712,219.78,219.65,7.681]
[1731518331177,21.70782712,219.75,219.65,7.681]
[1731518331492,4.5497,219.79,219.65,7.681]
[1731518332796,21.70782712,219.77,219.65,7.681]
[1731518333091,4.5497,219.79,219.65,7.681]
[1731518333473,21.70782712,219.74,219.56,7.681]
[1731518333678,21.70782712,219.72,219.56,7.681]
[1731518333981,21.70782712,219.73,219.56,7.681]
[1731518334497,4.5512,219.72,219.56,7.681]
[1731518334987,4.5512,219.72,219.57,0.12549]
[1731518335183,21.70782712,219.71,219.57,0.12549]
[1731518335383,21.70782712,219.71,219.56,7.681]
[1731518335581,21.70782712,219.7,219.56,7.681]
[1731518335777,21.70782712,219.67,219.56,7.681]
[1731518336594,21.70782712,219.65,219.55,15.0091]
[1731518337394,21.70782712,219.66,219.55,15.0091]
[1731518337590,21.70782712,219.67,219.55,15.0091]
[1731518337796,7.1889068,219.73,219.56,23.902374]
[1731518338103,4.5504,219.76,219.56,23.902374]
[1731518338308,4.5504,219.76,219.58,0.12549]
[1731518338494,4.5504,219.76,219.58,23.902374]
[1731518339090,4.5508,219.74,219.58,23.902374]
[1731518339985,1.0,219.72,219.58,23.902374]
[1731518340189,26.25922712,219.71,219.58,23.902374]
[1731518340487,21.70782712,219.68,219.57,7.681]
[1731518340692,21.70782712,219.69,219.57,7.681]
[1731518340912,1.0,219.72,219.58,0.12549]
[1731518341601,8.14037195,219.72,219.57,7.681]
[1731518341789,21.70782712,219.68,219.57,7.681]
[1731518342102,26.26002712,219.68,219.57,7.681]
[1731518342494,21.70782712,219.65,219.47,22.6901]
[1731518342696,0.12549,219.67,219.47,22.6901]
[1731518342697,21.70782712,219.6,219.47,22.6901]
[1731518342990,21.70782712,219.62,219.47,22.6901]
[1731518343189,21.70782712,219.63,219.48,0.12549]
[1731518343395,21.70782712,219.63,219.47,22.6901]
[1731518343592,21.70782712,219.62,219.47,22.6901]
[1731518343789,21.70782712,219.65,219.48,0.12549]
[1731518343990,21.70782712,219.64,219.48,0.12549]
[1731518344203,21.70782712,219.65,219.47,22.6901]
[1731518344420,21.70782712,219.63,219.47,22.6901]
[1731518344588,21.70782712,219.63,219.48,23.776884]
[1731518344885,4.5533,219.62,219.49,0.12549]
[1731518345090,6.92668297,219.67,219.49,0.12549]
[1731518345299,21.70782712,219.7,219.49,0.12549]
[1731518345502,7.01954527,219.69,219.51,0.1]
[1731518345717,7.01848769,219.74,219.55,27.80649]
[1731518346004,21.70782712,219.78,219.59,0.12549]
[1731518346197,12.69878267,219.72,219.59,0.12549]
[1731518346506,5.5512,219.72,219.59,0.12549]
[1731518346692,5.5512,219.72,219.55,7.681]
[1731518346693,21.70782712,219.71,219.56,23.776884]
[1731518346901,4.5516,219.7,219.57,0.12549]
[1731518347196,21.70782712,219.71,219.57,0.12549]
[1731518347583,5.5513,219.72,219.57,0.12549]
[1731518348201,21.70782712,219.71,219.57,0.12549]
[1731518348394,21.70782712,219.7,219.57,0.12549]
[1731518348806,21.70782712,219.69,219.57,0.12549]
[1731518349008,21.70782712,219.66,219.55,7.681]
[1731518349314,21.70782712,219.68,219.56,0.12549]
[1731518349506,21.70782712,219.69,219.56,0.12549]
[1731518349903,21.70782712,219.7,219.56,23.902374]
[1731518350109,21.70782712,219.7,219.56,0.12549]
[1731518350311,4.5514,219.71,219.56,0.12549]
[1731518350704,4.5514,219.71,219.55,7.681]
[1731518350905,4.5526,219.65,219.55,7.681]
[1731518351201,21.70782712,219.63,219.5,7.681]
[1731518351504,26.26042712,219.65,219.5,7.681]
[1731518351709,4.5526,219.65,219.53,0.12549]
[1731518352205,45.1608,219.68,219.53,0.12549]
[1731518352206,21.70782712,219.69,219.53,0.12549]
[1731518352414,26.25972712,219.69,219.53,23.902374]
[1731518352618,21.70782712,219.68,219.53,23.902374]
[1731518352793,21.70782712,219.67,219.53,23.902374]
[1731518353120,21.70782712,219.65,219.53,23.902374]
[1731518353296,4.5522,219.68,219.53,23.902374]
[1731518353999,1.0,219.72,219.58,15.0091]
[1731518354195,1.0,219.72,219.59,23.776884]
[1731518354410,1.0,219.72,219.59,23.876884]
[1731518354619,0.2,219.93,219.59,23.876884]
[1731518354620,0.77635303,219.84,219.65,23.902374]
[1731518354798,7.17634677,219.85,219.65,23.902374]
[1731518354992,4.5484,219.86,219.65,23.902374]
[1731518355394,15.0091,219.83,219.67,23.902374]
[1731518355595,15.0091,219.83,219.69,23.902374]
[1731518355810,26.25582712,219.88,219.71,23.902374]
[1731518355994,18.186962,219.87,219.71,23.902374]
[1731518356308,11.4671,219.94,219.7,14.0091]
[1731518356309,7.00986925,219.91,219.75,23.902374]
[1731518356511,34.6114,220.0,219.77,0.12549]
[1731518356710,18.179206,219.95,219.77,23.902374]
[1731518356888,26.25442712,219.94,219.77,23.902374]
[1731518357092,4.5466,219.94,219.77,23.902374]
[1731518357311,21.70782712,219.88,219.72,7.681]
[1731518357489,21.70782712,219.88,219.73,23.776884]
[1731518357693,21.70782712,219.88,219.74,0.12549]
[1731518358003,21.70782712,219.84,219.74,0.12549]
[1731518358207,21.70782712,219.87,219.73,0.12549]
[1731518358406,13.201,219.89,219.73,0.12549]
[1731518358407,21.70782712,219.86,219.73,0.12549]
[1731518358604,21.70782712,219.85,219.73,0.12549]
[1731518358805,21.70782712,219.85,219.72,7.681]
[1731518359008,4.5487,219.84,219.73,0.12549]
[1731518359311,21.70782712,219.82,219.72,7.681]
[1731518359515,21.70782712,219.83,219.72,7.681]
[1731518359896,21.70782712,219.8,219.73,0.12549]
[1731518360322,21.70782712,219.78,219.72,7.681]
[1731518360611,4.5486,219.85,219.67,7.681]
[1731518360612,21.70782712,219.76,219.67,7.681]
[1731518360799,21.70782712,219.79,219.67,7.681]
[1731518360994,21.70782712,219.81,219.68,0.12549]
[1731518361194,21.70782712,219.82,219.68,0.12549]
[1731518361399,21.70782712,219.81,219.68,0.12549]
[1731518361599,21.70782712,219.83,219.68,0.12549]
[1731518362015,21.70782712,219.81,219.68,23.902374]
[1731518362217,21.70782712,219.79,219.68,23.902374]
[1731518362417,21.70782712,219.79,219.67,7.681]
[1731518362418,21.70782712,219.73,219.67,7.681]
[1731518362717,21.70782712,219.74,219.65,0.12549]
[1731518362893,21.70782712,219.76,219.65,0.12549]
[1731518363096,21.70782712,219.78,219.65,0.12549]
[1731518363509,23.776884,219.84,219.65,0.12549]
[1731518363510,21.70782712,219.8,219.65,0.12549]
[1731518363695,21.70782712,219.82,219.65,23.902374]
[1731518363901,21.70782712,219.81,219.65,23.902374]
[1731518364111,21.70782712,219.8,219.65,23.902374]
[1731518364414,21.70782712,219.81,219.65,23.902374]
[1731518364603,21.70782712,219.76,219.64,14.0094]
[1731518364803,21.70782712,219.73,219.64,14.0094]
[1731518365208,21.70782712,219.75,219.64,14.0094]
[1731518365713,43.776884,219.83,219.64,14.0094]
[1731518365714,21.70782712,219.73,219.64,14.0094]
[1731518365915,21.70782712,219.71,219.62,7.681]
[1731518366117,21.70782712,219.67,219.57,7.681]
[1731518366318,21.70782712,219.63,219.57,7.681]
[1731518366618,21.70782712,219.64,219.52,21.6904]
[1731518366808,21.70782712,219.63,219.52,7.681]
[1731518367011,21.70782712,219.65,219.52,7.681]
[1731518367209,21.70782712,219.64,219.53,0.12549]
[1731518367423,21.70782712,219.63,219.52,7.681]
[1731518367719,21.70782712,219.61,219.53,0.12549]
[1731518367900,21.70782712,219.63,219.53,0.12549]
[1731518368102,21.70782712,219.66,219.52,7.681]
[1731518368305,26.25982712,219.68,219.52,7.681]
[1731518368504,4.5512,219.72,219.53,20.12549]
[1731518368708,21.70782712,219.73,219.53,20.12549]
[1731518368920,21.70782712,219.72,219.53,20.12549]
[1731518369527,21.70782712,219.71,219.55,0.12549]
[1731518369709,26.25942712,219.7,219.55,0.12549]
[1731518370227,21.70782712,219.66,219.46,37.98928361]
[1731518370428,21.70782712,219.61,219.46,37.98928361]
[1731518371333,21.70782712,219.63,219.46,37.98928361]
[1731518371515,26.26092712,219.63,219.46,37.98928361]
[1731518371713,21.70782712,219.61,219.46,37.98928361]
[1731518372227,21.70782712,219.62,219.46,37.98928361]
[1731518372430,21.70782712,219.58,219.46,37.98928361]
[1731518372818,35.54377831,219.59,219.47,0.12549]
[1731518373141,35.54377831,219.6,219.47,0.12549]
[1731518373330,35.54377831,219.61,219.46,37.98928361]
[1731518373532,35.54377831,219.6,219.46,37.98928361]
[1731518373716,35.54377831,219.57,219.46,37.98928361]
[1731518373911,35.54377831,219.54,219.46,37.98928361]
[1731518374111,35.54377831,219.51,219.46,37.98928361]
[1731518374332,0.1,219.55,219.46,19.56718233]
[1731518374525,35.54377831,219.5,219.46,19.56718233]
[1731518374925,35.54377831,219.48,219.46,14.49245674]
[1731518375121,35.54377831,219.48,219.35,7.681]
[1731518375324,35.54377831,219.49,219.35,7.681]
[1731518375518,40.09977831,219.49,219.35,7.681]
[1731518375724,35.54377831,219.44,219.3,1.26459953]
[1731518376023,35.54377831,219.46,219.3,1.26459953]
[1731518376531,35.54377831,219.44,219.3,1.26459953]
[1731518377033,79.32066231,219.42,219.3,1.26459953]
[1731518377211,35.54377831,219.37,219.3,1.26459953]
[1731518377410,35.54377831,219.36,219.3,1.26459953]
[1731518377634,36.9847,219.45,219.3,1.26459953]
[1731518377827,36.9847,219.45,219.31,0.12549]
[1731518378037,35.54377831,219.43,219.31,0.12549]
[1731518378216,23.776884,219.31,219.3,1.26459953]
[1731518378415,35.54377831,219.25,219.11,7.681]
[1731518378620,35.54377831,219.23,219.04,21.6904]
[1731518378923,11.92702129,219.24,219.04,21.6904]
[1731518379311,35.54377831,219.21,219.04,7.681]
[1731518379527,0.1,219.21,218.96,17.8258831]
[1731518380839,35.54377831,219.2,218.96,17.8258831]
[1731518381026,0.1,219.18,218.96,17.8258831]
[1731518381338,0.1,219.18,218.97,20.0]
[1731518382119,0.1,219.16,218.96,10.84226778]
[1731518382644,0.1,219.15,218.97,0.12549]
[1731518382817,0.1,219.16,218.97,0.12549]
[1731518383335,0.1,219.18,218.97,23.902374]
[1731518383635,0.1,219.18,218.96,10.84226778]
[1731518383636,0.1,219.18,219.02,20.0]
[1731518383829,0.1,219.18,219.03,23.902374]
[1731518384530,4.5615,219.23,219.03,23.902374]
[1731518384735,35.54377831,219.2,219.03,23.902374]
[1731518385036,40.10527831,219.23,219.03,23.902374]
[1731518385420,35.54377831,219.22,219.05,23.902374]
[1731518385620,40.10527831,219.23,219.05,23.902374]
[1731518385935,40.10527831,219.23,218.96,10.94226778]
[1731518385936,46.45227831,219.24,219.07,23.902374]
[1731518386435,35.54377831,219.23,219.07,23.902374]
[1731518386735,46.45227831,219.24,219.07,23.902374]
[1731518386919,35.54377831,219.23,219.07,23.902374]
[1731518387320,46.45227831,219.24,219.07,23.902374]
[1731518388333,25.15041507,219.27,219.07,23.776884]
[1731518388535,18.237014,219.27,219.09,23.776884]
[1731518388837,67.97167831,219.29,219.09,23.776884]
[1731518389021,35.54377831,219.28,219.11,23.776884]
[1731518389338,40.10407831,219.28,219.11,23.776884]
[1731518389549,35.54377831,219.28,219.11,23.776884]
[1731518389737,35.54377831,219.27,219.11,23.776884]
[1731518390831,35.54377831,219.28,219.11,23.776884]
[1731518391238,35.54377831,219.28,219.12,0.12549]
[1731518392052,35.54377831,219.25,219.12,0.12549]
[1731518392347,35.54377831,219.26,219.12,0.12549]
[1731518392746,35.54377831,219.25,219.12,0.12549]
[1731518393123,35.54377831,219.26,219.12,0.12549]
[1731518393645,40.10437831,219.27,219.12,0.12549]
[1731518394548,40.10437831,219.27,219.11,23.776884]
[1731518394549,35.54377831,219.22,219.02,1.6]
[1731518394851,21.93953323,219.25,219.02,1.5]
[1731518395030,23.776884,219.27,219.02,1.6]
[1731518395432,21.93953323,219.2,219.02,1.5]
[1731518395943,21.93953323,219.24,219.02,1.5]
[1731518399139,21.93953323,219.23,219.03,0.12549]
[1731518399536,21.93953323,219.22,219.03,23.902374]
[1731518400036,26.50123323,219.22,219.03,23.902374]
[1731518400237,4.5617,219.22,219.03,23.902374]
[1731518400433,28.91750662,219.24,219.03,23.902374]
[1731518400636,44.80980958,219.29,219.07,0.12549]
[1731518400836,21.93953323,219.26,219.07,23.902374]
[1731518401349,21.93953323,219.27,219.12,0.12549]
[1731518401540,21.93953323,219.22,219.12,0.12549]
[1731518401729,21.93953323,219.18,219.04,23.776884]
[1731518401934,57.80174536,219.29,219.04,43.776884]
[1731518402329,64.03400313,219.29,219.05,0.12549]
[1731518402545,21.93953323,219.21,219.03,10.8423]
[1731518402848,21.93953323,219.23,219.05,0.12549]
[1731518403234,21.93953323,219.25,219.05,0.12549]
[1731518403553,23.776884,219.27,219.05,0.12549]
[1731518403554,21.93953323,219.27,219.05,0.12549]
[1731518403848,46.40134536,219.29,219.05,0.12549]
[1731518403849,21.93953323,219.25,219.05,20.12549]
[1731518404046,21.93953323,219.25,219.09,0.12549]
[1731518404248,21.93953323,219.24,219.09,0.12549]
[1731518404740,21.93953323,219.22,219.09,0.12549]
[1731518404940,21.93953323,219.26,219.09,0.12549]
[1731518405142,21.93953323,219.24,219.09,0.12549]
[1731518405454,21.93953323,219.2,219.02,1.5]
[1731518405844,12.0526,219.21,219.03,0.12549]
[1731518406041,21.93953323,219.2,219.03,0.12549]
[1731518406630,21.93953323,219.19,219.02,1.5]
[1731518406954,21.93953323,219.18,219.02,1.5]
[1731518407133,4.5624,219.18,219.02,1.5]
[1731518407335,26.50193323,219.18,219.02,1.5]
[1731518407529,32.97504239,219.18,219.02,1.5]
[1731518407729,4.0624,219.18,219.02,1.5]
[1731518408142,21.93953323,219.2,219.03,0.12549]
[1731518408460,7.05028896,219.24,219.03,0.22549]
[1731518408658,21.93953323,219.27,219.03,0.22549]
[1731518408659,4.5606,219.27,219.05,43.902374]
[1731518408955,65.97124439,219.29,219.05,43.902374]
[1731518409456,32.4279,219.29,219.07,0.1]
[1731518409946,32.4279,219.29,219.05,44.102374]
[1731518410158,32.4279,219.29,219.08,0.1]
[1731518410336,36.9881,219.29,219.05,44.002374]
[1731518410527,21.93953323,219.28,219.05,43.902374]
[1731518411234,50.93140721,219.29,219.05,43.902374]
[1731518411947,43.89007728,219.29,219.05,43.902374]
[1731518412251,43.89007728,219.29,219.06,0.1]
[1731518412252,39.32987728,219.29,219.06,0.1]
[1731518412849,43.89007728,219.29,219.06,0.1]
[1731518413348,0.77877743,219.37,219.12,0.1]
[1731518413537,0.77877743,219.37,219.15,20.0]
[1731518413735,18.229803,219.38,219.21,20.12549]
[1731518413936,35.1434,219.45,219.25,20.12549]
[1731518414244,30.5864,219.45,219.27,20.12549]
[1731518414431,12.39,219.49,219.31,23.902374]
[1731518414750,19.42560345,219.49,219.31,23.902374]
[1731518415061,26.29804392,219.49,219.31,23.902374]
[1731518415227,21.93953323,219.48,219.31,0.12549]
[1731518415560,21.93953323,219.47,219.31,0.12549]
[1731518416153,4.5566,219.46,219.31,0.12549]
[1731518416346,23.776884,219.45,219.31,0.12549]
[1731518417030,4.5566,219.46,219.31,0.12549]
[1731518417031,4.5566,219.46,219.31,23.902374]
[1731518418045,4.5563,219.48,219.31,23.902374]
[1731518418237,4.5563,219.48,219.34,0.12549]
[1731518418439,26.49583323,219.48,219.34,0.12549]
[1731518418654,4.5563,219.48,219.34,0.12549]
[1731518418955,4.5563,219.48,219.31,23.902374]
[1731518419250,23.776884,219.47,219.31,23.902374]
[1731518419445,4.5566,219.46,219.31,23.902374]
[1731518421744,21.93953323,219.43,219.3,12.3423]
[1731518422951,4.5574,219.42,219.31,0.12549]
[1731518423655,28.333884,219.45,219.31,0.12549]
[1731518423843,4.557,219.45,219.31,23.902374]
[1731518424546,21.93953323,219.46,219.31,23.902374]
[1731518425137,26.49573323,219.48,219.31,23.902374]
[1731518425349,4.5562,219.48,219.31,23.902374]
[1731518426255,26.49573323,219.48,219.31,23.902374]
[1731518426460,21.93953323,219.45,219.31,0.12549]
[1731518426760,4.5566,219.46,219.31,0.12549]
[1731518426761,21.93953323,219.44,219.31,0.12549]
[1731518427050,21.93953323,219.43,219.3,12.3423]
[1731518427253,28.98171843,219.43,219.31,0.12549]
[1731518427447,21.93953323,219.43,219.31,0.12549]
[1731518428259,21.93953323,219.44,219.31,0.12549]
[1731518428469,4.557,219.44,219.31,23.902374]
[1731518429140,26.49653323,219.44,219.31,23.902374]
[1731518429339,21.93953323,219.42,219.31,0.12549]
[1731518429746,26.49713323,219.42,219.31,0.12549]
[1731518430363,4.5576,219.42,219.31,0.12549]